fUST/lending_fUST_20260221
["ID","MTS","AMOUNT","RATE_DAILY","PERIOD"]
[406215191,1771608690382,153.0,4.3e-07,2]
[406215192,1771608717635,-368.65725004,0.00013699,2]
[406215194,1771609397772,-500.0,0.00035,120]
[406215195,1771609397797,-500.0,0.00035,120]
[406215196,1771609397830,-1523.0,0.00035,120]
[406215197,1771609397849,-477.0,0.000352,120]
[406215198,1771609397892,-23.0,0.000352,120]
[406215199,1771609432198,454.0,0.000352,120]
[406215200,1771609440211,1459.47696795,0.000156,120]
[406215225,1771609831733,-2029.1483421,0.00012721,2]
[406215227,1771609831744,-487.0,0.00012721,2]
[406215233,1771609831784,-653.27557715,0.00012721,2]
[406215235,1771609831793,-263.30289554,0.0001298,2]
[406215237,1771609831803,-271.27080336,0.00013273,2]
[406215239,1771609831814,-228.72919664,0.00013273,2]
[406215241,1771609831824,-300.0,0.00013698,2]
[406215243,1771609831833,-480.0,0.00013698,2]
[406215245,1771609831842,-500.0,0.00013699,2]
[406215247,1771609831852,-345.39040608,0.00013699,2]
[406215249,1771609831861,-500.0,0.00013699,2]
[406215251,1771609831873,-73.38130556,0.00013821,2]
[406215253,1771609831884,-725.58652262,0.00013821,2]
[406215255,1771609831895,-670.28413101,0.00022555,2]
[406215268,1771609837899,-73.45035985,0.00022555,2]
[406215270,1771609837909,-500.0,0.00024473,2]
[406215272,1771609837918,-1381.762,0.00031297,2]
[406215274,1771609837928,-210.06154423,0.00032417,2]
[406215275,1771609837938,-176.628,0.0003337,35]
[406215277,1771609837950,-617.73957776,0.00033419,7]
[406215280,1771609837960,-500.0,0.00033419,7]
[406215282,1771609837971,-500.0,0.00033419,7]
[406215284,1771609837981,-327.78208764,0.00033419,7]
[406215286,1771609837997,-172.21791236,0.00033419,7]
[406215288,1771609838007,-198.60112097,0.00033419,7]
[406215291,1771609838022,-301.39887903,0.00033419,7]
[406215293,1771609838032,-500.0,0.00033419,7]
[406215295,1771609838041,-500.0,0.00033419,7]
[406215297,1771609838050,-500.0,0.00033419,7]
[406215299,1771609838059,-500.0,0.00033419,7]
[406215301,1771609838069,-563.80662602,0.00033419,7]
[406215304,1771609838078,-500.0,0.00033419,7]
[406215306,1771609838087,-500.0,0.00033419,7]
[406215308,1771609838097,-500.0,0.00033419,7]
[406215310,1771609838108,-500.0,0.00033419,7]
[406215312,1771609838118,-500.0,0.00033419,7]
[406215314,1771609838128,-500.0,0.00033419,7]
[406215316,1771609838139,-500.0,0.00033419,7]
[406215318,1771609838149,-500.0,0.00033419,7]
[406215320,1771609838159,-500.0,0.00033419,7]
[406215322,1771609838170,-500.0,0.00033419,7]
[406215324,1771609838179,-500.0,0.00033419,7]
[406215325,1771609838190,-500.0,0.00033419,7]
[406215326,1771609838200,-3148.5725293,0.0003342,2]
[406215327,1771609838210,-743.73449086,0.0003342,7]
[406215328,1771609838219,-154.83337774,0.0003342,7]
[406215329,1771609838230,-350.0,0.0003342,7]
[406215330,1771609838239,-350.0,0.0003342,7]
[406215331,1771609838249,-350.0,0.0003342,7]
[406215332,1771609838258,-350.0,0.0003342,7]
[406215333,1771609838268,-154.0,0.0003342,7]
[406215334,1771609838278,-350.0,0.0003342,7]
[406215335,1771609838288,-154.0,0.0003342,7]
[406215336,1771609838298,-350.0,0.0003342,7]
[406215337,1771609838308,-154.0,0.0003342,7]
[406215338,1771609838318,-350.0,0.0003342,7]
[406215339,1771609838327,-154.0,0.0003342,7]
[406215340,1771609838337,-350.0,0.0003342,7]
[406215341,1771609838348,-154.0,0.0003342,7]
[406215342,1771609838358,-350.0,0.0003342,7]
[406215343,1771609838367,-297.39921701,0.0003342,7]
[406215344,1771609838378,-350.0,0.0003342,7]
[406215345,1771609838388,-350.0,0.0003342,7]
[406215346,1771609838398,-350.0,0.0003342,7]
[406215347,1771609838408,-350.0,0.0003342,7]
[406215348,1771609838418,-350.0,0.0003342,7]
[406215349,1771609838428,-350.0,0.0003342,7]
[406215350,1771609838439,-350.0,0.0003342,7]
[406215351,1771609838449,-350.0,0.0003342,7]
[406215352,1771609838459,-350.0,0.0003342,7]
[406215353,1771609838469,-350.0,0.0003342,7]
[406215354,1771609838478,-350.0,0.0003342,7]
[406215355,1771609838488,-25.09704349,0.0003342,7]
[406215356,1771609838500,-324.90295651,0.0003342,7]
[406215357,1771609838509,-350.0,0.0003342,7]
[406215358,1771609838519,-350.0,0.0003342,7]
[406215359,1771609838528,-350.0,0.0003342,7]
[406215360,1771609838538,-350.0,0.0003342,7]
[406215361,1771609838547,-480.53229255,0.0003342,7]
[406215362,1771609838556,-151.0,0.0003382,36]
[406215363,1771609838566,-1000.0,0.00034,10]
[406215364,1771609838576,-600.0,0.00034087,30]
[406215365,1771609838585,-508.90127319,0.000342,10]
[406215366,1771609838595,-183.0,0.00034929,2]
[406215367,1771609838605,-12615.9,0.00035,2]
[406215368,1771609838614,-183.0,0.0003508,2]
[406215369,1771609838624,-271.43289262,0.000352,5]
[406215370,1771609838634,-500.0,0.000354,120]
[406215371,1771609838643,-183.0,0.00035554,7]
[406215372,1771609838652,-500.0,0.000356,120]
[406215373,1771609838661,-500.0,0.000358,120]
[406215374,1771609838670,-183.0,0.00035975,2]
[406215375,1771609838679,-500.0,0.00036,120]
[406215376,1771609838688,-151.0,0.000362,10]
[406215377,1771609838698,-183.0,0.00036549,2]
[406215378,1771609838707,-151.0,0.000371,16]
[406215379,1771609838716,-720.0,0.00037496,30]
[406215380,1771609838725,-160.44340106,0.00037516,30]
[406215381,1771609838734,-3679.4454419,0.0003788,2]
[406215382,1771609838744,-151.26,0.000379,7]
[406215383,1771609838753,-999.0,0.00037961,120]
[406215384,1771609838762,-719.17,0.00037962,3]
[406215385,1771609838772,-359.58,0.00037962,3]
[406215386,1771609838781,-179.79,0.00037962,3]
[406215387,1771609838791,-539.42,0.00037962,3]
[406215388,1771609838800,-807.76,0.00037962,10]
[406215389,1771609838810,-40727.9113351,0.00037962,3]
[406215390,1771609838819,-147185.0252866,0.00037972,2]
[406215409,1771609840364,-356.8454367,0.00037972,2]
[406215410,1771609840375,-1000.0,0.00037972,2]
[406215411,1771609840386,-52865.52437063,0.00037972,2]
[406215863,1771609844612,-2154.77808016,0.00034828,2]
[406215864,1771609844621,-43117.6795475,0.00037972,2]
[406215866,1771609844630,-5287.00985297,0.0003799,2]
[406215868,1771609844640,-743.73449086,0.0003799,3]
[406215870,1771609844649,-8145.58226703,0.0003799,3]
[406215872,1771609844659,-30437.31,0.00038,14]
[406215874,1771609844667,-220.48,0.00038,30]
[406215876,1771609844676,-3679.44544188,0.00038111,2]
[406215878,1771609844685,-8145.58226703,0.00038152,3]
[406215880,1771609844694,-65204.82660601,0.00038162,2]
[406215881,1771609844703,-487.0,0.00038162,2]
[406215883,1771609844712,-487.0,0.00038162,2]
[406215885,1771609844722,-808.12,0.00038162,2]
[406215887,1771609844731,-637.98,0.000382,14]
[406215889,1771609844739,-8000.0,0.000383,120]
[406215891,1771609844748,-8145.58226703,0.00038332,3]
[406215893,1771609844757,-3679.44544188,0.00038342,2]
[406215894,1771609844767,-16291.1645341,0.00038346,3]
[406215896,1771609844775,-569.11067518,0.00038346,3]
[406215898,1771609844784,-894.4893504,0.00038356,19]
[406215900,1771609844793,-500.0,0.00038356,2]
[406215902,1771609844802,-500.0,0.00038356,19]
[406215904,1771609844810,-500.0,0.00038356,19]
[406215906,1771609844820,-191.38692087,0.00038356,19]
[406215907,1771609844829,-500.0,0.00038356,19]
[406215909,1771609844838,-500.0,0.00038356,19]
[406215911,1771609844847,-220.11617889,0.00038356,19]
[406215913,1771609844856,-500.0,0.00038356,19]
[406215915,1771609844865,-329.62321501,0.00038356,19]
[406215917,1771609844874,-170.80335183,0.00038356,19]
[406215918,1771609844885,-230.39803159,0.00038356,19]
[406215920,1771609844895,-550.1032451,0.00038356,19]
[406215922,1771609844904,-1000.0,0.00038356,2]
[406215924,1771609844913,-500.0,0.00038356,19]
[406215926,1771609844923,-167.82539658,0.00038356,19]
[406215928,1771609844932,-500.0,0.00038356,19]
[406215929,1771609844943,-516.72818194,0.00038356,19]
[406215931,1771609844952,-548.19968979,0.00038356,19]
[406215933,1771609844961,-524.257006,0.00038356,19]
[406215935,1771609844970,-539.51726826,0.00038356,19]
[406215937,1771609844979,-548.92063006,0.00038356,19]
[406215939,1771609844988,-500.0,0.00038356,19]
[406215941,1771609844996,-500.0,0.00038356,19]
[406215944,1771609845005,-500.0,0.00038356,19]
[406215947,1771609845014,-500.0,0.00038356,19]
[406215949,1771609845023,-585.08687091,0.00038356,19]
[406215951,1771609845032,-542.76449964,0.00038356,19]
[406215954,1771609845040,-500.0,0.00038356,19]
[406215957,1771609845049,-618.63376396,0.00038356,19]
[406215959,1771609845058,-519.95173694,0.00038356,19]
[406215962,1771609845067,-557.68281148,0.00038356,19]
[406215965,1771609845077,-500.0,0.00038356,19]
[406215967,1771609845086,-500.0,0.00038356,19]
[406215969,1771609845095,-561.11256428,0.00038356,19]
[406215971,1771609845103,-174.41587943,0.00038356,19]
[406215973,1771609845112,-538.99385484,0.00038356,19]
[406215975,1771609845121,-622.33272667,0.00038356,19]
[406215976,1771609845131,-560.97413832,0.00038356,19]
[406215978,1771609845140,-617.9188168,0.00038356,19]
[406215980,1771609845149,-547.99977813,0.00038356,19]
[406215982,1771609845158,-551.6212109,0.00038356,19]
[406215983,1771609845167,-591.78329044,0.00038356,19]
[406215985,1771609845176,-508.13523929,0.00038356,19]
[406215987,1771609845185,-500.0,0.00038356,19]
[406215989,1771609845194,-500.0,0.00038356,5]
[406215991,1771609845203,-500.0,0.00038356,19]
[406215993,1771609845212,-500.0,0.00038356,19]
[406215994,1771609845221,-500.0,0.00038356,19]
[406215996,1771609845231,-500.0,0.00038356,19]
[406215998,1771609845240,-502.7724859,0.00038356,19]
[406216000,1771609845249,-500.0,0.00038356,2]
[406216002,1771609845258,-151.34797979,0.00038356,19]
[406216004,1771609845267,-500.0,0.00038356,19]
[406216006,1771609845275,-502.6,0.00038356,19]
[406216007,1771609845284,-501.34016856,0.00038356,19]
[406216009,1771609845293,-401.44285228,0.00038356,19]
[406216011,1771609845302,-500.0,0.00038356,19]
[406216013,1771609845311,-500.0,0.00038356,19]
[406216015,1771609845320,-500.0,0.00038356,19]
[406216017,1771609845329,-150.63052939,0.00038356,19]
[406216019,1771609845338,-552.30600561,0.00038356,19]
[406216021,1771609845347,-280.33918838,0.00038356,19]
[406216023,1771609845357,-500.0,0.00038356,19]
[406216024,1771609845366,-500.0,0.00038356,19]
[406216026,1771609845377,-500.0,0.00038356,19]
[406216028,1771609845387,-500.0,0.00038356,19]
[406216030,1771609845397,-203.77940365,0.00038356,19]
[406216032,1771609845407,-163.77730187,0.00038356,19]
[406216034,1771609845416,-521.07368586,0.00038356,19]
[406216035,1771609845427,-186.49876256,0.00038356,19]
[406216038,1771609845440,-167.13158808,0.00038356,19]
[406216040,1771609845453,-500.0,0.00038356,19]
[406216044,1771609845466,-500.0,0.00038356,19]
[406216047,1771609845478,-500.0,0.00038356,19]
[406216050,1771609845491,-649.25429702,0.00038356,19]
[406216054,1771609845503,-510.33613875,0.00038356,19]
[406216058,1771609845514,-626.26532855,0.00038356,19]
[406216061,1771609845524,-527.56320578,0.00038356,19]
[406216064,1771609845535,-500.0,0.00038356,19]
[406216067,1771609845547,-500.0,0.00038356,19]
[406216069,1771609845558,-563.39122999,0.00038356,19]
[406216071,1771609845568,-587.71159392,0.00038356,19]
[406216073,1771609845580,-500.0,0.00038356,19]
[406216075,1771609845591,-509.08496945,0.00038356,19]
[406216077,1771609845602,-218.71966028,0.00038356,19]
[406216079,1771609845613,-322.07207431,0.00038356,19]
[406216081,1771609845625,-500.0,0.00038356,19]
[406216083,1771609845636,-627.85878241,0.00038356,19]
[406216085,1771609845647,-500.0,0.00038356,19]
[406216088,1771609845663,-2003.15,0.00038356,7]
[406216090,1771609845675,-605.02537315,0.00038356,19]
[406216092,1771609845686,-500.0,0.00038356,19]
[406216094,1771609845698,-500.0,0.00038356,19]
[406216096,1771609845708,-500.0,0.00038356,19]
[406216099,1771609845720,-528.32744219,0.00038356,19]
[406216101,1771609845732,-500.0,0.00038356,19]
[406216103,1771609845744,-555.52202638,0.00038356,19]
[406216105,1771609845754,-500.0,0.00038356,19]
[406216107,1771609845766,-500.0,0.00038356,19]
[406216109,1771609845777,-500.0,0.00038356,19]
[406216112,1771609845789,-549.28550458,0.00038356,19]
[406216114,1771609845800,-500.0,0.00038356,19]
[406216116,1771609845810,-500.0,0.00038356,19]
[406216118,1771609845821,-240.79212392,0.00038356,19]
[406216119,1771609845830,-500.0,0.00038356,19]
[406216120,1771609845839,-500.0,0.00038356,19]
[406216122,1771609845849,-500.0,0.00038356,19]
[406216124,1771609845860,-500.0,0.00038356,19]
[406216126,1771609845871,-176.95640517,0.00038356,19]
[406216129,1771609845887,-565.57710938,0.00038356,19]
[406216130,1771609845898,-500.0,0.00038356,19]
[406216133,1771609845909,-228.09291523,0.00038356,19]
[406216135,1771609845920,-1320.44,0.00038356,19]
[406216136,1771609845932,-245.08249811,0.00038356,19]
[406216137,1771609845943,-500.0,0.00038356,19]
[406216138,1771609845957,-500.0,0.00038356,19]
[406216139,1771609845968,-500.0,0.00038356,19]
[406216140,1771609845980,-152.84594995,0.00038356,19]
[406216141,1771609845991,-561.82493286,0.00038356,19]
[406216142,1771609846003,-500.0,0.00038356,19]
[406216143,1771609846014,-590.22967217,0.00038356,19]
[406216145,1771609846026,-500.0,0.00038356,19]
[406216147,1771609846036,-500.0,0.00038356,19]
[406216149,1771609846047,-201.7387911,0.00038356,19]
[406216151,1771609846057,-500.0,0.00038356,19]
[406216153,1771609846067,-500.0,0.00038356,7]
[406216155,1771609846077,-500.0,0.00038356,19]
[406216157,1771609846088,-500.0,0.00038356,19]
[406216159,1771609846100,-500.0,0.00038356,19]
[406216162,1771609846112,-500.0,0.00038356,19]
[406216164,1771609846124,-243.45794446,0.00038356,19]
[406216166,1771609846135,-500.0,0.00038356,19]
[406216168,1771609846146,-2476.24,0.00038356,19]
[406216170,1771609846155,-171.50686769,0.00038356,19]
[406216172,1771609846165,-295.58529604,0.00038356,19]
[406216174,1771609846175,-500.0,0.00038356,19]
[406216176,1771609846186,-500.0,0.00038356,19]
[406216178,1771609846200,-500.0,0.00038356,19]
[406216180,1771609846212,-209.59950668,0.00038356,19]
[406216182,1771609846222,-257.39127856,0.00038356,19]
[406216184,1771609846233,-279.30765623,0.00038356,19]
[406216186,1771609846243,-500.0,0.00038356,19]
[406216188,1771609846253,-607.02937024,0.00038356,19]
[406216190,1771609846263,-500.0,0.00038356,19]
[406216192,1771609846274,-937.0,0.00038356,19]
[406216194,1771609846284,-268.42968832,0.00038356,19]
[406216196,1771609846294,-581.28749124,0.00038356,19]
[406216198,1771609846304,-523.00371678,0.00038356,19]
[406216200,1771609846314,-500.0,0.00038356,19]
[406216201,1771609846325,-539.82,0.00038356,19]
[406216202,1771609846335,-503.75714657,0.00038356,12]
[406216204,1771609846346,-500.0,0.00038356,19]
[406216206,1771609846356,-500.0,0.00038356,19]
[406216207,1771609846367,-632.65,0.00038356,19]
[406216208,1771609846377,-865.92,0.00038356,19]
[406216209,1771609846388,-500.0,0.00038356,19]
[406216210,1771609846398,-500.0,0.00038356,19]
[406216211,1771609846408,-532.84266535,0.00038356,19]
[406216212,1771609846418,-500.0,0.00038356,19]
[406216213,1771609846428,-874.64,0.00038356,19]
[406216214,1771609846439,-1000.0,0.00038356,2]
[406216215,1771609846449,-500.0,0.00038356,19]
[406216216,1771609846459,-153.82976495,0.00038356,19]
[406216217,1771609846469,-605.35,0.00038356,19]
[406216218,1771609846479,-500.0,0.00038356,19]
[406216219,1771609846489,-500.0,0.00038356,19]
[406216220,1771609846500,-500.0,0.00038356,19]
[406216221,1771609846510,-500.0,0.00038356,19]
[406216222,1771609846520,-500.0,0.00038356,19]
[406216223,1771609846531,-500.0,0.00038356,19]
[406216224,1771609846541,-190.73646374,0.00038356,19]
[406216225,1771609846551,-500.0,0.00038356,19]
[406216226,1771609846561,-500.0,0.00038356,19]
[406216227,1771609846572,-500.0,0.00038356,19]
[406216228,1771609846582,-500.0,0.00038356,2]
[406216229,1771609846593,-500.0,0.00038356,19]
[406216230,1771609846603,-18920.35,0.00038356,19]
[406216231,1771609846614,-500.0,0.00038356,19]
[406216232,1771609846625,-525.36061065,0.00038356,19]
[406216233,1771609846636,-534.46848918,0.00038356,19]
[406216234,1771609846646,-500.0,0.00038356,19]
[406216235,1771609846657,-151.0,0.00038356,2]
[406216236,1771609846667,-151.0,0.00038356,2]
[406216237,1771609846791,-151.0,0.00038356,2]
[406216238,1771609846804,-151.0,0.00038356,2]
[406216239,1771609846813,-180.423261,0.00038356,2]
[406216240,1771609846822,-201.710253,0.00038356,120]
[406216241,1771609846831,-201.710253,0.00038356,120]
[406216242,1771609846839,-201.710253,0.00038356,120]
[406216243,1771609846847,-201.710253,0.00038356,120]
[406216244,1771609846855,-201.710253,0.00038356,120]
[406216245,1771609846863,-201.710253,0.00038356,120]
[406216246,1771609846874,-201.710253,0.00038356,120]
[406216247,1771609846883,-201.710253,0.00038356,120]
[406216248,1771609846891,-201.710253,0.00038356,120]
[406216249,1771609846900,-201.710253,0.00038356,120]
[406216250,1771609846908,-201.710253,0.00038356,120]
[406216251,1771609846919,-201.710253,0.00038356,120]
[406216252,1771609846928,-201.710253,0.00038356,120]
[406216253,1771609846940,-201.710253,0.00038356,120]
[406216254,1771609846953,-201.710253,0.00038356,120]
[406216255,1771609846962,-201.710253,0.00038356,120]
[406216256,1771609846973,-201.710253,0.00038356,120]
[406216257,1771609846982,-201.710253,0.00038356,120]
[406216258,1771609846991,-201.710253,0.00038356,120]
[406216259,1771609847001,-201.710245,0.00038356,120]
[406216260,1771609847010,-393.438978,0.00038356,120]
[406216261,1771609847019,-393.438978,0.00038356,120]
[406216262,1771609847028,-393.438978,0.00038356,120]
[406216263,1771609847037,-393.438978,0.00038356,120]
[406216264,1771609847049,-393.438978,0.00038356,120]
[406216265,1771609847058,-393.438978,0.00038356,120]
[406216266,1771609847067,-393.438978,0.00038356,120]
[406216267,1771609847076,-393.438978,0.00038356,120]
[406216268,1771609847085,-393.438978,0.00038356,120]
[406216269,1771609847094,-393.438978,0.00038356,120]
[406216270,1771609847103,-393.438978,0.00038356,120]
[406216271,1771609847112,-393.438978,0.00038356,120]
[406216272,1771609847121,-393.438978,0.00038356,120]
[406216273,1771609847130,-393.438978,0.00038356,120]
[406216274,1771609847139,-393.438978,0.00038356,120]
[406216275,1771609847149,-393.438978,0.00038356,120]
[406216276,1771609847158,-393.438978,0.00038356,120]
[406216277,1771609847167,-393.438978,0.00038356,120]
[406216278,1771609847176,-393.438978,0.00038356,120]
[406216279,1771609847185,-393.438977,0.00038356,120]
[406216280,1771609847196,-151.0,0.00038356,2]
[406216281,1771609847205,-478.7,0.00038356,7]
[406216282,1771609847215,-478.7,0.00038356,7]
[406216283,1771609847224,-478.7,0.00038356,7]
[406216284,1771609847233,-478.7,0.00038356,7]
[406216285,1771609847242,-478.7,0.00038356,7]
[406216286,1771609847252,-478.7,0.00038356,7]
[406216287,1771609847262,-478.7,0.00038356,7]
[406216288,1771609847271,-478.7,0.00038356,7]
[406216289,1771609847281,-478.7,0.00038356,7]
[406216290,1771609847290,-478.7,0.00038356,7]
[406216291,1771609847300,-478.7,0.00038356,7]
[406216292,1771609847309,-478.7,0.00038356,7]
[406216293,1771609847319,-478.7,0.00038356,7]
[406216294,1771609847328,-478.7,0.00038356,7]
[406216295,1771609847337,-478.7,0.00038356,7]
[406216296,1771609847348,-478.7,0.00038356,7]
[406216297,1771609847358,-478.7,0.00038356,7]
[406216298,1771609847370,-478.7,0.00038356,7]
[406216299,1771609847379,-478.7,0.00038356,7]
[406216300,1771609847389,-478.7,0.00038356,7]
[406216301,1771609847399,-500.0,0.00038356,60]
[406216302,1771609847408,-500.0,0.00038356,60]
[406216303,1771609847417,-500.0,0.00038356,60]
[406216304,1771609847426,-500.0,0.00038356,60]
[406216305,1771609847435,-500.0,0.00038356,60]
[406216306,1771609847446,-500.0,0.00038356,60]
[406216307,1771609847456,-500.0,0.00038356,60]
[406216308,1771609847466,-151.0,0.00038356,7]
[406216309,1771609847475,-500.0,0.00038356,60]
[406216310,1771609847485,-151.0,0.00038356,7]
[406216311,1771609847495,-500.0,0.00038356,60]
[406216312,1771609847505,-252.997811,0.00038356,7]
[406216313,1771609847515,-500.0,0.00038356,60]
[406216314,1771609847524,-500.0,0.00038356,60]
[406216315,1771609847533,-500.0,0.00038356,60]
[406216316,1771609847543,-500.0,0.00038356,60]
[406216317,1771609847553,-500.0,0.00038356,60]
[406216318,1771609847563,-500.0,0.00038356,60]
[406216319,1771609847572,-500.0,0.00038356,60]
[406216320,1771609847582,-500.0,0.00038356,60]
[406216321,1771609847592,-500.0,0.00038356,60]
[406216322,1771609847607,-500.0,0.00038356,60]
[406216323,1771609847616,-500.0,0.00038356,60]
[406216324,1771609847626,-3679.44544188,0.00038573,2]
[406216325,1771609847635,-16291.1645341,0.0003862,3]
[406216326,1771609847645,-894.4893504,0.0003863,19]
[406216327,1771609847655,-500.0,0.0003863,2]
[406216328,1771609847664,-500.0,0.0003863,19]
[406216329,1771609847673,-500.0,0.0003863,19]
[406216330,1771609847682,-500.0,0.0003863,19]
[406216331,1771609847693,-500.0,0.0003863,19]
[406216332,1771609847702,-500.0,0.0003863,19]
[406216333,1771609847711,-1000.0,0.0003863,2]
[406216334,1771609847720,-538.87093951,0.0003863,19]
[406216335,1771609847730,-500.0,0.0003863,19]
[406216336,1771609847738,-500.0,0.0003863,19]
[406216337,1771609847748,-186.4298623,0.0003863,19]
[406216338,1771609847757,-500.0,0.0003863,19]
[406216339,1771609847767,-500.0,0.0003863,19]
[406216340,1771609847777,-500.0,0.0003863,19]
[406216341,1771609847787,-500.0,0.0003863,19]
[406216342,1771609847796,-478.28319869,0.0003863,19]
[406216343,1771609847805,-506.9391646,0.0003863,19]
[406216344,1771609847814,-500.0,0.0003863,5]
[406216345,1771609847824,-500.0,0.0003863,19]
[406216346,1771609847833,-500.0,0.0003863,19]
[406216347,1771609847842,-500.0,0.0003863,19]
[406216348,1771609847852,-500.0,0.0003863,19]
[406216349,1771609847861,-500.0,0.0003863,2]
[406216350,1771609847872,-500.0,0.0003863,19]
[406216351,1771609847884,-502.6,0.0003863,19]
[406216352,1771609847893,-501.97778087,0.0003863,19]
[406216353,1771609847903,-500.0,0.0003863,19]
[406216354,1771609847911,-500.0,0.0003863,19]
[406216355,1771609847921,-500.0,0.0003863,19]
[406216356,1771609847931,-500.0,0.0003863,19]
[406216357,1771609847944,-500.0,0.0003863,19]
[406216358,1771609847955,-500.0,0.0003863,19]
[406216359,1771609847965,-500.0,0.0003863,19]
[406216360,1771609847974,-500.0,0.0003863,19]
[406216361,1771609847983,-500.0,0.0003863,19]
[406216362,1771609847990,-197.22705026,0.0003863,19]
[406216363,1771609847999,-279.73625646,0.0003863,19]
[406216364,1771609848007,-166.42880934,0.0003863,19]
[406216365,1771609848015,-537.8415921,0.0003863,19]
[406216366,1771609848023,-2003.15,0.0003863,7]
[406216367,1771609848032,-592.24003015,0.0003863,19]
[406216368,1771609848040,-500.0,0.0003863,19]
[406216369,1771609848048,-500.0,0.0003863,19]
[406216370,1771609848057,-500.0,0.0003863,19]
[406216371,1771609848065,-500.0,0.0003863,19]
[406216372,1771609848073,-500.0,0.0003863,19]
[406216373,1771609848082,-500.0,0.0003863,19]
[406216374,1771609848090,-500.0,0.0003863,19]
[406216375,1771609848099,-176.28859476,0.0003863,19]
[406216376,1771609848107,-500.0,0.0003863,19]
[406216377,1771609848116,-500.0,0.0003863,19]
[406216378,1771609848124,-500.0,0.0003863,19]
[406216379,1771609848132,-159.07869352,0.0003863,19]
[406216380,1771609848141,-500.0,0.0003863,19]
[406216381,1771609848150,-1320.44,0.0003863,19]
[406216382,1771609848158,-500.0,0.0003863,19]
[406216383,1771609848166,-500.0,0.0003863,19]
[406216384,1771609848175,-521.89719091,0.0003863,19]
[406216385,1771609848185,-500.0,0.0003863,19]
[406216386,1771609848196,-500.0,0.0003863,19]
[406216387,1771609848205,-280.89706363,0.0003863,19]
[406216388,1771609848214,-571.3996208,0.0003863,19]
[406216389,1771609848223,-500.0,0.0003863,7]
[406216390,1771609848233,-500.0,0.0003863,19]
[406216391,1771609848242,-500.0,0.0003863,19]
[406216392,1771609848251,-186.2793762,0.0003863,19]
[406216393,1771609848261,-500.0,0.0003863,19]
[406216394,1771609848270,-240.75271096,0.0003863,19]
[406216395,1771609848279,-2476.24,0.0003863,19]
[406216396,1771609848288,-500.0,0.0003863,19]
[406216397,1771609848297,-500.0,0.0003863,19]
[406216398,1771609848306,-500.0,0.0003863,19]
[406216399,1771609848316,-500.0,0.0003863,19]
[406216400,1771609848325,-500.0,0.0003863,19]
[406216401,1771609848334,-937.0,0.0003863,19]
[406216402,1771609848343,-432.64486291,0.0003863,19]
[406216403,1771609848354,-539.82,0.0003863,19]
[406216404,1771609848363,-500.0,0.0003863,19]
[406216405,1771609848373,-500.0,0.0003863,19]
[406216406,1771609848382,-632.65,0.0003863,19]
[406216407,1771609848390,-865.92,0.0003863,19]
[406216408,1771609848400,-264.84212694,0.0003863,19]
[406216409,1771609848409,-500.0,0.0003863,19]
[406216410,1771609848418,-500.0,0.0003863,19]
[406216411,1771609848428,-1000.0,0.0003863,2]
[406216412,1771609848437,-874.64,0.0003863,19]
[406216413,1771609848448,-500.0,0.0003863,19]